[Event "58th Akiba Rubinstein D 2022"]
[Site "Polanica-Zdroj"]
[Date "2022.08.21"]
[Round "9.21"]
[White "Serewa, Antoni"]
[Black "Sleczka, Krzysztof"]
[Result "1-0"]
[ECO "D52"]
[WhiteElo "1542"]
[BlackElo "1443"]
[Annotator "NA RC"]
[PlyCount "133"]
[EventDate "2022.08.13"]
[EventCountry "POL"]
[SourceTitle "playchess.com"]
[Source "ChessBase"]
[SourceQuality "1"]
[TimeControl "40/5400+30:1800+30"]

1. d4 d5 {[%emt 0:00:03]} 2. c4 {[%emt 0:00:19]} e6 {[%emt 0:00:04]} 3. Nc3 {[%emt 0:00:07]} Nf6 {[%emt 0:00:01]} 4. Nf3 {[%emt 0:00:08]} c6 {[%emt 0:00:02]} 5. Bg5 {[%emt 0:00:08]} Nbd7 {[%emt 0:00:55]} 6. e3 {[%emt 0:00:07]} Qa5 {[%emt 0:00:53]} 7. Nd2 {[%emt 0:01:24]} dxc4 {[%emt 0:00:29]} 8. Bxf6 {[%emt 0:00:11]} Nxf6 {[%emt 0:00:02]} 9. Nxc4 {[%emt 0:00:09]} Qc7 {[%emt 0:00:02]} 10. Be2 {[%emt 0:00:14]} Be7 {[%emt 0:03:38]} 11. O-O {[%emt 0:00:08]} O-O {[%emt 0:01:05]} 12. a3 {[%emt 0:00:19]} c5 {[%emt 0:13:41]} 13. Nb5 {[%emt 0:01:57]} Qd8 {[%emt 0:04:44]} 14. dxc5 {[%emt 0:05:50]} Bxc5 {[%emt 0:01:43]} 15. b4 {[%emt 0:05:39]} Be7 {[%emt 0:00:48]} 16. Qb3 {[%emt 0:01:20]} a6 17. Rfd1 {[%emt 0:04:25]} Bd7 {[%emt 0:07:07]} 18. Nd4 {[%emt 0:03:38]} b5 {[%emt 0:08:04]} 19. Ne5 {[%emt 0:05:35]} Qc7 {[%emt 0:02:01]} 20. Nxd7 {[%emt 0:01:35]} Nxd7 {[%emt 0:01:52]} 21. Nxe6 {[%emt 0:05:44]} Qa7 {[%emt 0:04:54]} 22. Nxf8 {[%emt 0:00:45]} Rxf8 {[%emt 0:00:20]} 23. a4 {[%emt 0:03:16]} Bf6 {[%emt 0:01:29]} 24. Rab1 {[%emt 0:00:47]} Rb8 {[%emt 0:01:26]} 25. axb5 {[%emt 0:03:54]} axb5 {[%emt 0:00:02]} 26. h3 {[%emt 0:01:04]} Nf8 {[%emt 0:02:41]} 27. Rd5 {[%emt 0:02:14]} Qa6 {[%emt 0:00:52]} 28. Qd3 {[%emt 0:01:10]} Qa2 {[%emt 0:00:09]} 29. Rd1 {[%emt 0:00:38]} Ne6 {[%emt 0:01:29]} 30. Rxb5 {[%emt 0:05:30]} Rd8 {[%emt 0:00:51]} 31. Rd5 {[%emt 0:00:30]} Rxd5 {[%emt 0:00:11]} 32. Qxd5 {[%emt 0:00:10]} Qxe2 {[%emt 0:00:23]} 33. b5 {[%emt 0:04:05]} Bh4 {[%emt 0:04:28]} 34. Rf1 {[%emt 0:01:15]} Bd8 {[%emt 0:01:01]} 35. Qc6 {[%emt 0:01:31]} g6 {[%emt 0:02:16]} 36. b6 {[%emt 0:01:52]} Qb2 {[%emt 0:03:02]} 37. b7 {[%emt 0:01:08]} Bc7 {[%emt 0:00:16]} 38. Rc1 {[%emt 0:06:01]} Kf8 {[%emt 0:02:30]} 39. g3 {[%emt 0:05:40]} Qb3 {[%emt 0:08:15]} 40. Kg2 {[%emt 0:03:12]} g5 {[%emt 0:03:01]} 41. Ra1 {[%emt 0:38:19]} h5 42. Ra8+ {[%emt 0:02:02]} Kg7 {[%emt 0:33:21]} 43. Re8 {[%emt 0:07:44]} Be5 {[%emt 0:00:47]} 44. Qe4 {[%emt 0:05:20]} Bd6 {[%emt 0:00:35]} 45. Rc8 {[%emt 0:01:48]} Qb2 {[%emt 0:03:22]} 46. Qc6 {[%emt 0:00:39]} Be5 {[%emt 0:00:55]} 47. Qd5 {[%emt 0:00:38]} Nc7 {[%emt 0:02:52]} 48. Qf3 {[%emt 0:00:35]} Ne6 {[%emt 0:00:28]} 49. Qe4 {[%emt 0:00:36]} Bd6 {[%emt 0:00:15]} 50. Rc2 {[%emt 0:00:33]} Qb3 {[%emt 0:01:13]} 51. Qc6 {[%emt 0:00:30]} Be5 {[%emt 0:00:36]} 52. Qe4 {[%emt 0:02:15]} Bd6 {[%emt 0:00:00]} 53. Rd2 {[%emt 0:00:38]} Bb8 {[%emt 0:01:32]} 54. Rd5 {[%emt 0:00:34]} Kh6 {[%emt 0:01:15]} 55. Rd7 {[%emt 0:00:28]} Kg7 {[%emt 0:00:07]} 56. Qf5 {[%emt 0:00:23]} Nf8 {[%emt 0:03:53]} 57. Qxg5+ {[%emt 0:00:07]} Ng6 {[%emt 0:00:01]} 58. Qxh5 {[%emt 0:00:49]} Qb6 {[%emt 0:00:06]} 59. Qd5 {[%emt 0:00:33]} Qf6 {[%emt 0:00:18]} 60. Rd8 {[%emt 0:00:47]} Bc7 {[%emt 0:00:26]} 61. b8=Q {[%emt 0:00:16]} Bxb8 {[%emt 0:00:28]} 62. Rxb8 {[%emt 0:00:05]} Ne5 {[%emt 0:00:09]} 63. Rb4 {[%emt 0:00:31]} Qe7 {[%emt 0:00:26]} 64. Re4 {[%emt 0:00:24]} f6 {[%emt 0:00:09]} 65. Rd4 {[%emt 0:01:17]} Qa3 {[%emt 0:00:59]} 66. Qb7+ {[%emt 0:00:23]} Kg6 {[%emt 0:00:01]} 67. Rh4 {[%emt 0:00:17]} 1-0

[Event "58th Akiba Rubinstein D 2022"]
[Site "Polanica-Zdroj"]
[Date "2022.08.21"]
[Round "9.23"]
[White "Chilkiewicz, Piotr"]
[Black "Grudzinski, Krzysztof"]
[Result "1-0"]
[ECO "B41"]
[WhiteElo "1549"]
[BlackElo "1520"]
[Annotator "NA RC"]
[PlyCount "61"]
[EventDate "2022.08.13"]
[EventCountry "POL"]
[SourceTitle "playchess.com"]
[Source "ChessBase"]
[SourceQuality "1"]
[TimeControl "40/5400+30:1800+30"]

1. e4 {[%emt 0:02:22]} c5 {[%emt 0:00:11]} 2. Nf3 {[%emt 0:00:09]} e6 {[%emt 0:00:15]} 3. d4 {[%emt 0:00:38]} cxd4 {[%emt 0:00:10]} 4. Nxd4 {[%emt 0:00:05]} a6 {[%emt 0:00:14]} 5. g3 {[%emt 0:01:50]} Nf6 {[%emt 0:01:06]} 6. Bg2 {[%emt 0:01:39]} Qc7 {[%emt 0:01:04]} 7. O-O {[%emt 0:00:50]} Nc6 {[%emt 0:02:00]} 8. Nb3 {[%emt 0:00:55]} Be7 {[%emt 0:01:19]} 9. a4 {[%emt 0:01:42]} O-O {[%emt 0:01:13]} 10. Nc3 b6 {[%emt 0:08:12]} 11. f4 {[%emt 0:02:33]} d6 {[%emt 0:01:05]} 12. Be3 {[%emt 0:00:30]} Rb8 {[%emt 0:00:54]} 13. Qe2 {[%emt 0:01:03]} Bb7 {[%emt 0:01:30]} 14. g4 {[%emt 0:00:27]} Nd7 {[%emt 0:10:09]} 15. g5 {[%emt 0:05:08]} Nc5 {[%emt 0:02:55]} 16. f5 {[%emt 0:05:21]} Rfe8 {[%emt 0:03:48]} 17. g6 fxg6 {[%emt 0:01:21]} 18. Nxc5 {[%emt 0:14:37]} bxc5 {[%emt 0:00:10]} 19. fxg6 {[%emt 0:00:29]} Ne5 {[%emt 0:01:14]} 20. gxh7+ {[%emt 0:04:50]} Kh8 21. Qh5 {[%emt 0:08:52]} Bf6 {[%emt 0:04:25]} 22. Bg5 {[%emt 0:05:23]} Bxg5 {[%emt 0:01:37]} 23. Qxg5 {[%emt 0:00:07]} Rbd8 {[%emt 0:00:09]} 24. Ne2 {[%emt 0:01:16]} d5 {[%emt 0:01:22]} 25. Nf4 {[%emt 0:00:21]} Kxh7 {[%emt 0:03:56]} 26. Ra3 dxe4 {[%emt 0:11:34]} 27. Rh3+ {[%emt 0:05:57]} Kg8 {[%emt 0:00:11]} 28. Ng6 {[%emt 0:00:26]} Nf3+ {[%emt 0:01:22]} 29. Bxf3 {[%emt 0:02:08]} exf3 {[%emt 0:00:15]} 30. Rh8+ {[%emt 0:00:07]} Kf7 {[%emt 0:00:14]} 31. Ne5+ 1-0

[Event "58th Akiba Rubinstein D 2022"]
[Site "Polanica-Zdroj"]
[Date "2022.08.21"]
[Round "9.24"]
[White "Bednarkiewicz, Jakub"]
[Black "Misiek, Stanislaw"]
[Result "0-1"]
[ECO "D43"]
[WhiteElo "1545"]
[BlackElo "1427"]
[Annotator "NA RC"]
[PlyCount "40"]
[EventDate "2022.08.13"]
[EventCountry "POL"]
[SourceTitle "playchess.com"]
[Source "ChessBase"]
[SourceQuality "1"]
[TimeControl "40/5400+30:1800+30"]

1. d4 {[%emt 0:00:08]} d5 {[%emt 0:00:06]} 2. c4 {[%emt 0:00:14]} c6 {[%emt 0:00:07]} 3. Nc3 {[%emt 0:00:45]} Nf6 {[%emt 0:00:07]} 4. Nf3 {[%emt 0:00:24]} e6 {[%emt 0:00:11]} 5. Bf4 {[%emt 0:00:43]} dxc4 {[%emt 0:00:12]} 6. e3 {[%emt 0:00:45]} b5 {[%emt 0:00:07]} 7. Qc2 {[%emt 0:03:47]} Nbd7 {[%emt 0:02:41]} 8. Be2 {[%emt 0:01:32]} Bb7 {[%emt 0:00:21]} 9. O-O {[%emt 0:01:53]} Be7 {[%emt 0:01:22]} 10. Ne5 {[%emt 0:05:49]} Nd5 {[%emt 0:07:58]} 11. Bg3 {[%emt 0:03:50]} Nxe5 {[%emt 0:08:29]} 12. Bxe5 {[%emt 0:01:22]} O-O {[%emt 0:00:34]} 13. Ne4 {[%emt 0:01:53]} Qb6 {[%emt 0:08:00]} 14. Bd6 {[%emt 0:06:55]} Bxd6 {[%emt 0:09:45]} 15. Nxd6 {[%emt 0:01:24]} c5 {[%emt 0:00:10]} 16. dxc5 {[%emt 0:04:14]} Qxc5 {[%emt 0:01:16]} 17. Nxb7 {[%emt 0:01:24]} Qb6 {[%emt 0:00:10]} 18. Na5 {[%emt 0:02:14]} Qxa5 {[%emt 0:00:51]} 19. a4 {[%emt 0:00:46]} Qb6 20. a5 Qxa5 0-1

[Event "58th Akiba Rubinstein D 2022"]
[Site "Polanica-Zdroj"]
[Date "2022.08.21"]
[Round "9.26"]
[White "Szczepanski, Krzysztof"]
[Black "Gawlik, Olivier"]
[Result "0-1"]
[ECO "E92"]
[WhiteElo "1790"]
[BlackElo "1384"]
[Annotator "NA RC"]
[PlyCount "89"]
[EventDate "2022.08.13"]
[EventCountry "POL"]
[SourceTitle "playchess.com"]
[Source "ChessBase"]
[SourceQuality "1"]
[TimeControl "40/5400+30:1800+30"]

1. Nf3 {[%emt 0:05:56]} Nf6 {[%emt 0:00:30]} 2. d4 {[%emt 0:00:12]} g6 {[%emt 0:00:10]} 3. c4 {[%emt 0:00:42]} Bg7 {[%emt 0:00:05]} 4. Nc3 {[%emt 0:00:08]} d6 {[%emt 0:01:03]} 5. e4 {[%emt 0:01:49]} O-O {[%emt 0:00:20]} 6. Be2 {[%emt 0:00:45]} e5 {[%emt 0:00:26]} 7. d5 {[%emt 0:00:21]} a5 {[%emt 0:07:36]} 8. a4 {[%emt 0:04:17]} Na6 {[%emt 0:05:27]} 9. O-O {[%emt 0:01:12]} Nc5 {[%emt 0:08:55]} 10. Qc2 {[%emt 0:00:31]} h6 {[%emt 0:04:16]} 11. Be3 {[%emt 0:00:21]} b6 {[%emt 0:01:19]} 12. h3 {[%emt 0:03:05]} Nh7 {[%emt 0:14:47]} 13. Ra3 {[%emt 0:04:08]} f5 {[%emt 0:05:54]} 14. Bxc5 {[%emt 0:00:37]} bxc5 {[%emt 0:00:26]} 15. exf5 {[%emt 0:01:13]} gxf5 16. Nh2 {[%emt 0:01:14]} Nf6 {[%emt 0:19:09]} 17. Rb3 {[%emt 0:01:40]} Kh8 {[%emt 0:01:10]} 18. g4 {[%emt 0:03:21]} Nh7 {[%emt 0:02:28]} 19. Nb5 {[%emt 0:05:03]} f4 {[%emt 0:04:44]} 20. Bd3 {[%emt 0:00:49]} Ng5 {[%emt 0:00:32]} 21. Bg6 {[%emt 0:03:18]} f3 22. Kh1 {[%emt 0:03:10]} Nxh3 {[%emt 0:05:36]} 23. Rxf3 {[%emt 0:00:43]} Rxf3 {[%emt 0:00:17]} 24. Nxf3 {[%emt 0:00:23]} Bxg4 {[%emt 0:00:26]} 25. Qe4 {[%emt 0:02:45]} Nf4 26. Nh2 {[%emt 0:07:48]} Be2 {[%emt 0:07:00]} 27. Rg1 {[%emt 0:03:18]} Bd3 {[%emt 0:00:28]} 28. Qf3 {[%emt 0:05:13]} Bxg6 {[%emt 0:00:36]} 29. Qg4 {[%emt 0:00:46]} Qe7 {[%emt 0:01:48]} 30. Nf1 {[%emt 0:02:49]} Bh5 {[%emt 0:01:23]} 31. Qxg7+ {[%emt 0:04:36]} Qxg7 {[%emt 0:00:05]} 32. Rxg7 {[%emt 0:00:09]} Kxg7 {[%emt 0:00:09]} 33. Nxc7 {[%emt 0:00:02]} Rd8 {[%emt 0:01:20]} 34. Ne3 {[%emt 0:00:07]} Rd7 {[%emt 0:00:54]} 35. Nb5 {[%emt 0:00:05]} Kf6 {[%emt 0:01:03]} 36. Kh2 {[%emt 0:00:12]} Ne2 {[%emt 0:01:31]} 37. Nf1 {[%emt 0:00:44]} Nd4 {[%emt 0:01:04]} 38. Nd2 {[%emt 0:00:42]} Nf3+ {[%emt 0:00:14]} 39. Nxf3 {[%emt 0:00:06]} Bxf3 {[%emt 0:00:04]} 40. Kg3 {[%emt 0:00:35]} Be2 {[%emt 0:01:11]} 41. f4 {[%emt 0:30:47]} exf4+ {[%emt 0:30:26]} 42. Kxf4 {[%emt 0:00:09]} Bxc4 {[%emt 0:00:17]} 43. Nc3 {[%emt 0:00:03]} Re7 {[%emt 0:00:24]} 44. b3 {[%emt 0:00:40]} Bxb3 {[%emt 0:00:18]} 45. Nb5 {[%emt 0:00:03]} 0-1

[Event "58th Akiba Rubinstein D 2022"]
[Site "Polanica-Zdroj"]
[Date "2022.08.21"]
[Round "9.27"]
[White "Karpiuk, Julian"]
[Black "Ugorek, Kacper"]
[Result "1/2-1/2"]
[ECO "E61"]
[WhiteElo "1513"]
[BlackElo "1747"]
[Annotator "NA RC"]
[PlyCount "62"]
[EventDate "2022.08.13"]
[EventCountry "POL"]
[SourceTitle "playchess.com"]
[Source "ChessBase"]
[SourceQuality "1"]
[TimeControl "40/5400+30:1800+30"]

1. d4 {[%emt 0:00:02]} Nf6 {[%emt 0:00:09]} 2. c4 {[%emt 0:00:05]} g6 {[%emt 0:00:06]} 3. Nc3 {[%emt 0:00:05]} Bg7 {[%emt 0:00:06]} 4. Bg5 {[%emt 0:00:07]} O-O {[%emt 0:00:43]} 5. e3 {[%emt 0:00:09]} d6 {[%emt 0:00:14]} 6. Bd3 {[%emt 0:00:22]} h6 {[%emt 0:00:57]} 7. Bh4 {[%emt 0:00:07]} e5 {[%emt 0:00:45]} 8. Nge2 {[%emt 0:00:28]} Nc6 {[%emt 0:02:39]} 9. d5 {[%emt 0:05:32]} Ne7 {[%emt 0:04:18]} 10. f3 {[%emt 0:00:48]} Nd7 11. Qd2 {[%emt 0:06:53]} f5 {[%emt 0:01:31]} 12. O-O-O {[%emt 0:05:24]} Nc5 {[%emt 0:02:42]} 13. Bc2 {[%emt 0:00:42]} a5 {[%emt 0:00:19]} 14. Bxe7 {[%emt 0:09:35]} Qxe7 {[%emt 0:00:09]} 15. g4 fxg4 {[%emt 0:13:25]} 16. fxg4 {[%emt 0:00:18]} Bxg4 {[%emt 0:10:52]} 17. Rhg1 {[%emt 0:08:53]} h5 {[%emt 0:07:59]} 18. h3 {[%emt 0:02:49]} Bf5 {[%emt 0:03:23]} 19. Bxf5 {[%emt 0:05:08]} Rxf5 {[%emt 0:07:12]} 20. Rxg6 {[%emt 0:00:44]} Raf8 {[%emt 0:01:15]} 21. Rdg1 {[%emt 0:02:08]} Rf1+ {[%emt 0:00:30]} 22. Kc2 {[%emt 0:00:15]} Rxg1 {[%emt 0:00:27]} 23. Rg5 Rg2 24. Rxg2 {[%emt 0:00:50]} Qh4 {[%emt 0:04:43]} 25. Rg1 {[%emt 0:08:34]} Qxh3 {[%emt 0:06:08]} 26. Ng3 {[%emt 0:13:47]} h4 {[%emt 0:06:15]} 27. Qe2 {[%emt 0:03:35]} Qf5+ {[%emt 0:01:21]} 28. Nge4 {[%emt 0:09:33]} Qh7 {[%emt 0:03:55]} 29. Qg2 {[%emt 0:01:41]} h3 {[%emt 0:02:45]} 30. Kd2 {[%emt 0:02:21]} h2 {[%emt 0:01:33]} 31. Qg4 {[%emt 0:00:06]} Nxe4+ {[%emt 0:04:19]} 1/2-1/2

[Event "58th Akiba Rubinstein D 2022"]
[Site "Polanica-Zdroj"]
[Date "2022.08.21"]
[Round "9.28"]
[White "Ursnik, Patryk"]
[Black "Kurzawa, Marcin"]
[Result "1-0"]
[ECO "B08"]
[WhiteElo "1671"]
[BlackElo "1290"]
[Annotator "NA RC"]
[PlyCount "63"]
[EventDate "2022.08.13"]
[EventCountry "POL"]
[SourceTitle "playchess.com"]
[Source "ChessBase"]
[SourceQuality "1"]
[TimeControl "40/5400+30:1800+30"]

1. e4 {[%emt 0:01:12]} d6 {[%emt 0:00:06]} 2. d4 {[%emt 0:00:04]} Nf6 {[%emt 0:00:12]} 3. Nc3 {[%emt 0:00:32]} g6 {[%emt 0:00:21]} 4. Nf3 {[%emt 0:00:16]} Bg7 {[%emt 0:00:12]} 5. Be2 {[%emt 0:00:19]} O-O {[%emt 0:00:14]} 6. O-O {[%emt 0:00:03]} b6 {[%emt 0:01:03]} 7. Bf4 {[%emt 0:01:02]} Nh5 {[%emt 0:00:49]} 8. Be3 {[%emt 0:00:40]} Bb7 {[%emt 0:00:26]} 9. Ng5 {[%emt 0:01:53]} Nf6 {[%emt 0:00:41]} 10. e5 {[%emt 0:01:20]} dxe5 {[%emt 0:00:39]} 11. dxe5 {[%emt 0:06:44]} Nd5 {[%emt 0:01:17]} 12. Nxd5 {[%emt 0:03:05]} Bxd5 {[%emt 0:01:20]} 13. c4 {[%emt 0:02:01]} Bb7 {[%emt 0:00:41]} 14. f4 {[%emt 0:00:41]} h6 {[%emt 0:00:26]} 15. Nf3 {[%emt 0:00:46]} e6 {[%emt 0:00:55]} 16. Qc2 {[%emt 0:00:41]} c5 {[%emt 0:01:17]} 17. Rad1 {[%emt 0:00:14]} Qe7 {[%emt 0:00:29]} 18. Rd6 {[%emt 0:02:39]} Na6 {[%emt 0:01:07]} 19. a3 {[%emt 0:03:57]} Rad8 {[%emt 0:04:58]} 20. Rfd1 {[%emt 0:00:27]} Rxd6 {[%emt 0:00:26]} 21. exd6 {[%emt 0:01:18]} Qd7 {[%emt 0:01:41]} 22. Ne5 {[%emt 0:00:43]} Bxe5 {[%emt 0:00:40]} 23. fxe5 {[%emt 0:00:04]} Kg7 {[%emt 0:00:27]} 24. Qd2 {[%emt 0:00:49]} Rh8 25. b4 {[%emt 0:01:42]} cxb4 {[%emt 0:03:20]} 26. axb4 {[%emt 0:00:13]} Nb8 {[%emt 0:02:42]} 27. c5 {[%emt 0:02:24]} bxc5 {[%emt 0:01:04]} 28. Bxc5 {[%emt 0:00:55]} a6 {[%emt 0:01:33]} 29. Qf4 {[%emt 0:00:33]} Rf8 {[%emt 0:01:34]} 30. Be3 {[%emt 0:01:42]} Rh8 31. Bc5 Rf8 32. Be3 1-0

[Event "58th Akiba Rubinstein D 2022"]
[Site "Polanica-Zdroj"]
[Date "2022.08.21"]
[Round "9.29"]
[White "Latacz, Grzegorz"]
[Black "Rosa, Antoni"]
[Result "1/2-1/2"]
[ECO "D35"]
[WhiteElo "1449"]
[BlackElo "1598"]
[Annotator "NA RC"]
[PlyCount "48"]
[EventDate "2022.08.13"]
[EventCountry "POL"]
[SourceTitle "playchess.com"]
[Source "ChessBase"]
[SourceQuality "1"]
[TimeControl "40/5400+30:1800+30"]

1. d4 {[%emt 0:00:07]} d5 {[%emt 0:00:23]} 2. c4 {[%emt 0:00:05]} e6 {[%emt 0:00:09]} 3. Nc3 {[%emt 0:00:14]} Nf6 {[%emt 0:00:08]} 4. cxd5 {[%emt 0:00:07]} exd5 {[%emt 0:00:14]} 5. Bg5 {[%emt 0:00:05]} Be7 {[%emt 0:00:14]} 6. e3 {[%emt 0:00:14]} c6 {[%emt 0:00:31]} 7. Bd3 {[%emt 0:00:21]} O-O {[%emt 0:01:03]} 8. Qc2 {[%emt 0:00:11]} h6 {[%emt 0:00:30]} 9. Bf4 {[%emt 0:00:11]} Be6 {[%emt 0:00:28]} 10. Nf3 {[%emt 0:02:03]} Nbd7 {[%emt 0:00:21]} 11. h3 {[%emt 0:02:56]} c5 {[%emt 0:02:07]} 12. dxc5 {[%emt 0:14:45]} Nxc5 {[%emt 0:00:56]} 13. O-O {[%emt 0:02:20]} Rc8 {[%emt 0:03:54]} 14. Nd4 {[%emt 0:03:48]} Nfe4 {[%emt 0:06:19]} 15. Nxe6 {[%emt 0:10:31]} fxe6 {[%emt 0:00:43]} 16. Nxe4 {[%emt 0:03:37]} Nxe4 {[%emt 0:01:15]} 17. Qe2 {[%emt 0:00:09]} Nf6 {[%emt 0:03:00]} 18. Rac1 {[%emt 0:03:24]} Qb6 {[%emt 0:04:23]} 19. Be5 {[%emt 0:04:25]} Rxc1 {[%emt 0:10:39]} 20. Rxc1 {[%emt 0:00:09]} Bd6 {[%emt 0:01:47]} 21. Bxf6 {[%emt 0:01:09]} Rxf6 {[%emt 0:16:03]} 22. Bb1 {[%emt 0:07:59]} Rf7 {[%emt 0:00:30]} 23. Rc8+ {[%emt 0:11:34]} Rf8 {[%emt 0:00:36]} 24. Rxf8+ {[%emt 0:01:41]} Bxf8 1/2-1/2

[Event "58th Akiba Rubinstein D 2022"]
[Site "Polanica-Zdroj"]
[Date "2022.08.21"]
[Round "9.30"]
[White "Suszczynski, Dominik"]
[Black "Perek, Oskar"]
[Result "0-1"]
[ECO "B20"]
[WhiteElo "1329"]
[BlackElo "1555"]
[Annotator "NA RC"]
[PlyCount "49"]
[EventDate "2022.08.13"]
[EventCountry "POL"]
[SourceTitle "playchess.com"]
[Source "ChessBase"]
[SourceQuality "1"]
[TimeControl "40/5400+30:1800+30"]

1. e4 {[%emt 0:00:03]} c5 {[%emt 0:00:12]} 2. b4 {[%emt 0:00:06]} cxb4 {[%emt 0:00:16]} 3. Nf3 {[%emt 0:00:03]} Nc6 {[%emt 0:00:42]} 4. d4 {[%emt 0:00:06]} d5 {[%emt 0:00:20]} 5. exd5 {[%emt 0:00:05]} Qxd5 {[%emt 0:00:38]} 6. c4 {[%emt 0:00:23]} bxc3 {[%emt 0:05:32]} 7. Nxc3 {[%emt 0:00:02]} Qa5 {[%emt 0:01:58]} 8. Rb1 {[%emt 0:00:42]} e6 {[%emt 0:08:02]} 9. Bd2 Qd8 {[%emt 0:02:44]} 10. Bb5 {[%emt 0:04:34]} Nf6 {[%emt 0:05:47]} 11. Ne5 {[%emt 0:07:07]} Bd7 {[%emt 0:00:28]} 12. Nxd7 {[%emt 0:02:10]} Qxd7 {[%emt 0:02:54]} 13. Qf3 {[%emt 0:03:38]} Be7 {[%emt 0:06:24]} 14. O-O {[%emt 0:03:18]} O-O {[%emt 0:03:06]} 15. Rfd1 {[%emt 0:26:34]} Rac8 {[%emt 0:07:21]} 16. Bf4 {[%emt 0:14:33]} Rfd8 {[%emt 0:04:12]} 17. Be5 {[%emt 0:20:10]} a6 {[%emt 0:05:13]} 18. Bxc6 Rxc6 {[%emt 0:01:14]} 19. g4 {[%emt 0:15:15]} h6 {[%emt 0:01:31]} 20. Qg3 {[%emt 0:01:01]} Rdc8 {[%emt 0:02:48]} 21. Rd3 {[%emt 0:00:21]} b5 {[%emt 0:01:43]} 22. Ne2 {[%emt 0:00:46]} Rc2 {[%emt 0:01:43]} 23. Nf4 {[%emt 0:00:13]} Ne4 {[%emt 0:00:50]} 24. Qf3 {[%emt 0:00:47]} Nxf2 {[%emt 0:01:05]} 25. g5 {[%emt 0:01:03]} 0-1